fUSD/lending_fUSD_20250225
["ID","MTS","AMOUNT","RATE_DAILY","PERIOD"]
[354391107,1740468784000,-500.0,0.0005863,120]
[354391108,1740468784011,-214.52181731,0.0005863,120]
[354391109,1740468784022,-542.99471124,0.0005863,120]
[354391110,1740468784033,-687.3,0.0005863,120]
[354391111,1740468784043,-500.0,0.0005863,120]
[354391112,1740468784055,-500.0,0.0005863,120]
[354391113,1740468784065,-1291.42,0.0005863,120]
[354391114,1740468784077,-500.0,0.0005863,120]
[354391115,1740468784088,-500.0,0.0005863,120]
[354391116,1740468784101,-500.0,0.0005863,120]
[354391117,1740468784112,-850.45,0.0005863,120]
[354391118,1740468784124,-500.0,0.0005863,120]
[354391119,1740468784135,-836.92,0.0005863,120]
[354391120,1740468784148,-925.53,0.0005863,120]
[354391121,1740468784160,-525.48,0.0005863,120]
[354391122,1740468784171,-500.0,0.0005863,120]
[354391123,1740468784181,-1017.7,0.0005863,120]
[354391124,1740468784192,-620.4,0.0005863,120]
[354391125,1740468784204,-500.0,0.0005863,120]
[354391126,1740468784215,-637.38,0.0005863,120]
[354391127,1740468784227,-500.0,0.0005863,120]
[354391128,1740468784238,-822.2,0.0005863,120]
[354391129,1740468784249,-500.0,0.0005863,120]
[354391130,1740468784261,-543.16,0.0005863,120]
[354391131,1740468784272,-1571.07,0.0005863,120]
[354391132,1740468784284,-848.24,0.0005863,120]
[354391133,1740468784295,-943.15,0.0005863,120]
[354391134,1740468784306,-500.0,0.0005863,120]
[354391135,1740468784317,-1168.63,0.0005863,120]
[354391136,1740468784327,-500.0,0.0005863,120]
[354391137,1740468784337,-517.51,0.0005863,120]
[354391138,1740468784347,-951.32,0.0005863,120]
[354391139,1740468784358,-2000.0,0.0005863,30]
[354391140,1740468784369,-207.52704947,0.0005863,120]
[354391141,1740468784380,-500.0,0.0005863,120]
[354391142,1740468784390,-500.0,0.0005863,120]
[354391143,1740468784400,-500.0,0.0005863,120]
[354391144,1740468784410,-777.26,0.0005863,120]
[354391145,1740468784420,-500.0,0.0005863,120]
[354391146,1740468784431,-560.94,0.0005863,120]
[354391147,1740468784442,-404.43,0.0005863,7]
[354391148,1740468784453,-500.0,0.0005863,120]
[354391149,1740468784465,-1128.12,0.0005863,120]
[354391150,1740468784475,-610.79,0.0005863,120]
[354391151,1740468784486,-630.83,0.0005863,120]
[354391152,1740468784496,-500.0,0.0005863,120]
[354391153,1740468784506,-500.0,0.0005863,120]
[354391154,1740468784518,-500.0,0.0005863,120]
[354391155,1740468784529,-500.0,0.0005863,120]
[354391156,1740468784540,-500.0,0.0005863,120]
[354391157,1740468784550,-641.8,0.0005863,120]
[354391158,1740468784561,-500.0,0.0005863,120]
[354391159,1740468784572,-1736.97,0.0005863,120]
[354391160,1740468784582,-500.0,0.0005863,120]
[354391161,1740468784592,-551.92,0.0005863,120]
[354391162,1740468784603,-500.0,0.0005863,120]
[354391163,1740468784613,-500.0,0.0005863,120]
[354391164,1740468784624,-829.97,0.0005863,120]
[354391165,1740468784635,-1884.67,0.0005863,120]
[354391166,1740468784645,-1959.02,0.0005863,120]
[354391167,1740468784656,-687.65,0.0005863,120]
[354391168,1740468784666,-1049.16,0.0005863,120]
[354391169,1740468784676,-500.0,0.0005863,120]
[354391170,1740468784687,-500.0,0.0005863,120]
[354391171,1740468784696,-500.0,0.0005863,120]
[354391172,1740468784706,-500.0,0.0005863,120]
[354391173,1740468784717,-910.65,0.0005863,120]
[354391174,1740468784728,-500.0,0.0005863,120]
[354391175,1740468784739,-500.0,0.0005863,120]
[354391176,1740468784749,-500.0,0.0005863,120]
[354391177,1740468784760,-555.2633235,0.0005863,120]
[354391178,1740468784770,-500.0,0.0005863,120]
[354391179,1740468784780,-1220.8,0.0005863,120]
[354391180,1740468784790,-500.0,0.0005863,120]
[354391181,1740468784800,-500.0,0.0005863,120]
[354391182,1740468784810,-522.31,0.0005863,120]
[354391183,1740468784820,-1188.98,0.0005863,120]
[354391184,1740468784830,-526.28,0.0005863,120]
[354391185,1740468784840,-1040.34,0.0005863,120]
[354391186,1740468784850,-500.0,0.0005863,120]
[354391187,1740468784860,-724.24,0.0005863,120]
[354391188,1740468784870,-500.0,0.0005863,120]
[354391189,1740468784879,-1422.51,0.0005863,120]
[354391190,1740468784889,-500.0,0.0005863,120]
[354391191,1740468784899,-1615.65,0.0005863,120]
[354391192,1740468784908,-992.42,0.0005863,20]
[354391193,1740468784917,-901.44,0.0005863,120]
[354391194,1740468784927,-816.88,0.0005863,120]
[354391195,1740468784937,-500.0,0.0005863,120]
[354391196,1740468784947,-671.92,0.0005863,120]
[354391197,1740468784956,-955.28,0.0005863,120]
[354391198,1740468784966,-1525.72,0.0005863,120]
[354391199,1740468784976,-1437.76,0.0005863,120]
[354391200,1740468784986,-1132.0,0.0005863,120]
[354391201,1740468784996,-1768.38,0.0005863,120]
[354391202,1740468785007,-872.14,0.0005863,120]
[354391203,1740468785017,-1405.94,0.0005863,120]
[354391204,1740468785028,-1000.0,0.0005863,120]
[354391205,1740468785039,-745.77,0.0005863,120]
[354391206,1740468785049,-500.0,0.0005863,120]
[354391207,1740468785059,-820.25,0.0005863,120]
[354391208,1740468785070,-778.18,0.0005863,120]
[354391209,1740468785080,-500.0,0.0005863,120]
[354391210,1740468785090,-500.0,0.0005863,120]
[354391211,1740468785101,-618.03,0.0005863,120]
[354391212,1740468785111,-538.57,0.0005863,120]
[354391213,1740468785122,-659.87,0.0005863,120]
[354391214,1740468785132,-542.24,0.0005863,120]
[354391215,1740468785146,-1379.17,0.0005863,120]
[354391216,1740468785156,-813.45,0.0005863,120]
[354391217,1740468785166,-1790.29,0.0005863,120]
[354391218,1740468785177,-817.76,0.0005863,120]
[354391219,1740468785187,-1159.57,0.0005863,120]
[354391220,1740468785198,-500.0,0.0005863,120]
[354391221,1740468785208,-500.0,0.0005863,120]
[354391222,1740468785219,-500.0,0.0005863,120]
[354391223,1740468785231,-1035.42,0.0005863,120]
[354391224,1740468785241,-1067.5,0.0005863,120]
[354391225,1740468785253,-500.0,0.0005863,120]
[354391226,1740468785263,-911.5,0.0005863,120]
[354391227,1740468785274,-782.71,0.0005863,120]
[354391228,1740468785285,-692.81,0.0005863,120]
[354391229,1740468785295,-1417.28,0.0005863,120]
[354391230,1740468785307,-4827.95,0.0005863,120]
[354391231,1740468785318,-907.1,0.0005863,120]
[354391232,1740468785329,-1025.54,0.0005863,120]
[354391233,1740468785339,-972.52,0.0005863,120]
[354391234,1740468785349,-524.80138055,0.0005863,120]
[354391235,1740468785360,-1147.6,0.0005863,120]
[354391236,1740468785371,-954.71,0.0005863,120]
[354391237,1740468785381,-508.53,0.0005863,120]
[354391238,1740468785391,-500.0,0.0005863,120]
[354391239,1740468785401,-1526.64,0.0005863,120]
[354391240,1740468785412,-672.91,0.0005863,120]
[354391241,1740468785422,-927.58,0.0005863,120]
[354391242,1740468785432,-500.0,0.0005863,120]
[354391243,1740468785442,-1242.39,0.0005863,120]
[354391244,1740468785452,-1600.52,0.0005863,120]
[354391245,1740468785463,-871.61,0.0005863,120]
[354391246,1740468785473,-549.43,0.0005863,120]
[354391247,1740468785482,-1142.54,0.0005863,120]
[354391248,1740468785492,-552.98,0.0005863,120]
[354391249,1740468785502,-1401.97,0.0005863,120]
[354391250,1740468785512,-1245.93,0.0005863,120]
[354391251,1740468785522,-1200.36,0.0005863,120]
[354391252,1740468785532,-500.0,0.0005863,120]
[354391253,1740468785543,-504.05,0.0005863,120]
[354391254,1740468785553,-500.0,0.0005863,120]
[354391255,1740468785563,-971.46,0.0005863,120]
[354391256,1740468785573,-209.21171084,0.0005863,120]
[354391257,1740468785583,-500.0,0.0005863,120]
[354391258,1740468785594,-500.0,0.0005863,120]
[354391259,1740468785604,-599.74,0.0005863,120]
[354391260,1740468785614,-515.75,0.0005863,120]
[354391261,1740468785624,-1301.53,0.0005863,120]
[354391262,1740468785634,-500.0,0.0005863,120]
[354391263,1740468785644,-1377.93,0.0005863,120]
[354391264,1740468785654,-623.61,0.0005863,120]
[354391265,1740468785664,-519.39,0.0005863,120]
[354391266,1740468785675,-500.0,0.0005863,120]
[354391267,1740468785685,-1303.38,0.0005863,120]
[354391268,1740468785695,-500.0,0.0005863,120]
[354391269,1740468785705,-408.1827656,0.0005863,120]
[354391270,1740468785715,-500.0,0.0005863,120]
[354391271,1740468785725,-585.47,0.0005863,120]
[354391272,1740468785735,-1349.4,0.0005863,120]
[354391273,1740468785745,-500.0,0.0005863,120]
[354391274,1740468785755,-552.97,0.0005863,120]
[354391275,1740468785764,-741.84,0.0005863,120]
[354391276,1740468785773,-700.58,0.0005863,2]
[354391277,1740468785783,-2351.09,0.0005863,2]
[354391278,1740468785792,-994.98,0.0005863,30]
[354391279,1740468785802,-715.33,0.0005863,120]
[354391280,1740468785812,-1439.89,0.0005863,120]
[354391281,1740468785821,-943.25,0.0005863,120]
[354391282,1740468785832,-500.0,0.0005863,120]
[354391283,1740468785842,-657.52,0.0005863,120]
[354391284,1740468785851,-500.0,0.0005863,120]
[354391285,1740468785861,-523.79,0.0005863,120]
[354391286,1740468785870,-500.0,0.0005863,120]
[354391287,1740468785879,-1664.27,0.0005863,120]
[354391288,1740468785889,-943.64,0.0005863,120]
[354391289,1740468785898,-516.4,0.0005863,120]
[354391290,1740468785908,-712.11,0.0005863,120]
[354391291,1740468785917,-500.0,0.0005863,120]
[354391292,1740468785927,-500.0,0.0005863,120]
[354391293,1740468785937,-331.83894223,0.0005863,120]
[354391294,1740468785946,-888.35,0.0005863,120]
[354391295,1740468785956,-500.0,0.0005863,120]
[354391296,1740468785965,-522.22,0.0005863,120]
[354391297,1740468785975,-1032.87,0.0005863,120]
[354391298,1740468785984,-500.0,0.0005863,120]
[354391299,1740468785993,-1438.9,0.0005863,120]
[354391300,1740468786003,-570.8,0.0005863,120]
[354391301,1740468786014,-815.66,0.0005863,120]
[354391302,1740468786024,-500.0,0.0005863,120]
[354391303,1740468786033,-1275.45,0.0005863,120]
[354391304,1740468786043,-3980.64,0.0005863,120]
[354391305,1740468786052,-500.0,0.0005863,120]
[354391306,1740468786062,-500.0,0.0005863,120]
[354391307,1740468786071,-204.8,0.0005863,120]
[354391308,1740468786080,-1206.75,0.0005863,120]
[354391309,1740468786090,-500.0,0.0005863,120]
[354391310,1740468786103,-1130.49,0.0005863,120]
[354391311,1740468786113,-1535.83,0.0005863,120]
[354391312,1740468786124,-1768.01,0.0005863,120]
[354391313,1740468786134,-664.86,0.0005863,120]
[354391314,1740468786144,-696.61,0.0005863,120]
[354391315,1740468786155,-1200.87,0.0005863,120]
[354391316,1740468786165,-1522.97,0.0005863,120]
[354391317,1740468786179,-221.73545366,0.0005863,120]
[354391318,1740468786189,-1393.05,0.0005863,120]
[354391319,1740468786198,-894.01,0.0005863,120]
[354391320,1740468786207,-986.38,0.0005863,120]
[354391321,1740468786217,-1886.6,0.0005863,120]
[354391322,1740468786227,-1184.76,0.0005863,120]
[354391323,1740468786237,-1319.72,0.0005863,120]
[354391324,1740468786247,-2022.2,0.0005863,120]
[354391325,1740468786256,-1099.29,0.0005863,120]
[354391326,1740468786265,-512.51,0.0005863,120]
[354391327,1740468786275,-517.98,0.0005863,120]
[354391328,1740468786284,-1030.18,0.0005863,120]
[354391329,1740468786294,-1444.43,0.0005863,120]
[354391330,1740468786303,-971.18,0.0005863,120]
[354391331,1740468786313,-1142.3,0.0005863,120]
[354391332,1740468786323,-1194.04,0.0005863,120]
[354391333,1740468786458,-1748.82,0.0005863,120]
[354391334,1740468786468,-679.54,0.0005863,120]
[354391335,1740468786477,-1309.17,0.0005863,120]
[354391336,1740468786487,-500.0,0.0005863,120]
[354391337,1740468786497,-587.74,0.0005863,120]
[354391338,1740468786507,-778.7,0.0005863,120]
[354391339,1740468786516,-730.67,0.0005863,120]
[354391340,1740468786526,-733.26,0.0005863,120]
[354391341,1740468786536,-598.78,0.0005863,120]
[354391342,1740468786545,-1016.76,0.0005863,120]
[354391343,1740468786555,-789.0,0.0005863,120]
[354391344,1740468786565,-343.780273,0.0005863,120]
[354391345,1740468786575,-500.0,0.0005863,120]
[354391346,1740468786585,-1145.46,0.0005863,120]
[354391347,1740468786594,-4362.55,0.0005863,120]
[354391348,1740468786604,-631.53,0.0005863,120]
[354391349,1740468786613,-969.91,0.0005863,120]
[354391350,1740468786623,-759.14,0.0005863,120]
[354391351,1740468786633,-500.0,0.0005863,120]
[354391352,1740468786642,-3017.39,0.0005863,120]
[354391353,1740468786652,-2220.86,0.0005863,120]
[354391354,1740468786662,-318.751745,0.0005863,120]
[354391355,1740468786671,-1553.03,0.0005863,120]
[354391356,1740468786680,-722.9,0.0005863,120]
[354391357,1740468786690,-856.37,0.0005863,120]
[354391358,1740468786699,-910.26,0.0005863,120]
[354391359,1740468786708,-1830.19,0.0005863,120]
[354391360,1740468786718,-500.0,0.0005863,120]
[354391361,1740468786727,-887.73,0.0005863,120]
[354391362,1740468786737,-1715.31,0.0005863,120]
[354391363,1740468786746,-521.02799616,0.0005863,120]
[354391364,1740468786755,-686.54,0.0005863,120]
[354391365,1740468786765,-2424.1,0.0005863,120]
[354391366,1740468786775,-239.71313015,0.0005863,120]
[354391367,1740468786784,-1521.55,0.0005863,120]
[354391368,1740468786794,-2919.48,0.0005863,120]
[354391369,1740468786804,-823.47,0.0005863,120]
[354391370,1740468786813,-1738.48,0.0005863,120]
[354391371,1740468786823,-915.34,0.0005863,120]
[354391372,1740468786833,-2711.99,0.0005863,120]
[354391373,1740468786843,-576.99,0.0005863,120]
[354391374,1740468786853,-500.0,0.0005863,120]
[354391375,1740468786863,-2110.84,0.0005863,120]
[354391376,1740468786872,-2315.41,0.0005863,120]
[354391377,1740468786881,-3875.43,0.0005863,7]
[354391378,1740468786890,-637.74,0.0005863,120]
[354391379,1740468786900,-1035.71,0.0005863,120]
[354391380,1740468786909,-750.25,0.0005863,120]
[354391381,1740468786918,-3264.88,0.0005863,120]
[354391382,1740468786927,-2938.93,0.0005863,120]
[354391383,1740468786936,-1210.86,0.0005863,120]
[354391384,1740468786945,-534.95,0.0005863,120]
[354391385,1740468786954,-2458.44,0.0005863,120]
[354391386,1740468786964,-703.65,0.0005863,120]
[354391387,1740468786974,-1556.62,0.0005863,120]
[354391388,1740468786983,-500.0,0.0005863,120]
[354391389,1740468786992,-2761.69,0.0005863,120]
[354391390,1740468787001,-585.51,0.0005863,120]
[354391391,1740468787010,-2649.21,0.0005863,120]
[354391392,1740468787019,-1981.89,0.0005863,120]
[354391393,1740468787028,-689.83,0.0005863,120]
[354391394,1740468787038,-3211.4,0.0005863,120]
[354391395,1740468787047,-2553.02,0.0005863,120]
[354391396,1740468787056,-1493.71,0.0005863,120]
[354391397,1740468787066,-1352.07,0.0005863,120]
[354391398,1740468787075,-2909.1,0.0005863,120]
[354391399,1740468787084,-1667.75,0.0005863,120]
[354391400,1740468787093,-1519.71,0.0005863,120]
[354391401,1740468787105,-4349.64,0.0005863,120]
[354391402,1740468787114,-752.34,0.0005863,120]
[354391403,1740468787124,-864.91,0.0005863,120]
[354391404,1740468787133,-1290.66,0.0005863,120]
[354391405,1740468787146,-500.0,0.0005863,120]
[354391406,1740468787156,-910.81,0.0005863,5]
[354391407,1740468787167,-2901.27,0.0005863,120]
[354391408,1740468787176,-1857.67,0.0005863,120]
[354391409,1740468787185,-500.0,0.0005863,120]
[354391410,1740468787195,-2986.93,0.0005863,120]
[354391411,1740468787205,-2864.49,0.0005863,120]
[354391412,1740468787215,-2305.88,0.0005863,120]
[354391413,1740468787225,-500.0,0.0005863,120]
[354391414,1740468787235,-2121.17,0.0005863,120]
[354391415,1740468787244,-1752.42,0.0005863,120]
[354391416,1740468787254,-538.64,0.0005863,120]
[354391417,1740468787263,-1452.1,0.0005863,120]
[354391418,1740468787273,-1822.96,0.0005863,120]
[354391419,1740468787282,-2477.45,0.0005863,120]
[354391420,1740468787291,-1851.24,0.0005863,120]
[354391421,1740468787301,-607.87,0.0005863,120]
[354391422,1740468787310,-2265.65,0.0005863,120]
[354391423,1740468787319,-3192.11,0.0005863,120]
[354391424,1740468787328,-3707.86,0.0005863,120]
[354391425,1740468787338,-1530.35,0.0005863,120]
[354391426,1740468787347,-1400.72,0.0005863,120]
[354391427,1740468787356,-813.46,0.0005863,120]
[354391428,1740468787366,-1028.29,0.0005863,120]
[354391429,1740468787375,-1470.7,0.0005863,120]
[354391430,1740468787384,-2337.12,0.0005863,120]
[354391431,1740468787393,-3975.46,0.0005863,120]
[354391432,1740468787403,-3333.6,0.0005863,120]
[354391433,1740468787412,-5873.49,0.0005863,120]
[354391434,1740468787422,-1036.75,0.0005863,120]
[354391435,1740468787432,-640.5,0.0005863,120]
[354391436,1740468787442,-500.0,0.0005863,120]
[354391437,1740468787451,-562.09,0.0005863,120]
[354391438,1740468787460,-2745.61,0.0005863,120]
[354391439,1740468787470,-707.46,0.0005863,120]
[354391440,1740468787479,-4540.04,0.0005863,120]
[354391441,1740468787488,-1113.18,0.0005863,120]
[354391442,1740468787498,-613.18,0.0005863,120]
[354391443,1740468787507,-3052.04,0.0005863,120]
[354391444,1740468787516,-2703.16,0.0005863,120]
[354391445,1740468787525,-522.41,0.0005863,120]
[354391446,1740468787534,-551.64,0.0005863,120]
[354391447,1740468787543,-1552.51,0.0005863,120]
[354391448,1740468787553,-1000.0,0.0005863,60]
[354391449,1740468787562,-2971.45,0.0005863,90]
[354391450,1740468787571,-1701.44,0.0005863,120]
[354391451,1740468787581,-553.8,0.0005863,120]
[354391452,1740468787591,-1833.0,0.0005863,120]
[354391453,1740468787599,-2581.17,0.0005863,120]
[354391454,1740468787623,-500.0,0.0005863,120]
[354391455,1740468787632,-522.17,0.0005863,120]
[354391456,1740468787642,-3435.08,0.0005863,120]
[354391457,1740468787650,-500.0,0.0005863,120]
[354391458,1740468787660,-857.98,0.0005863,120]
[354391459,1740468787669,-3140.0,0.0005863,120]
[354391460,1740468787678,-3227.53,0.0005863,120]
[354391461,1740468787687,-500.0,0.0005863,120]
[354391462,1740468787697,-271.40861398,0.0005863,120]
[354391463,1740468787706,-775.19,0.0005863,120]
[354391464,1740468787715,-500.0,0.0005863,120]
[354391465,1740468787725,-872.89,0.0005863,120]
[354391466,1740468787734,-2538.08,0.0005863,120]
[354391467,1740468787743,-2940.18,0.0005863,120]
[354391468,1740468787752,-3583.88,0.0005863,120]
[354391469,1740468787762,-2559.65,0.0005863,120]
[354391470,1740468787771,-1118.81,0.0005863,120]
[354391471,1740468787780,-688.16,0.0005863,120]
[354391472,1740468787791,-3329.23,0.0005863,120]
[354391473,1740468787800,-3487.12,0.0005863,120]
[354391474,1740468787810,-1907.44,0.0005863,120]
[354391475,1740468787819,-568.38,0.0005863,120]
[354391476,1740468787828,-2138.38,0.0005863,120]
[354391477,1740468787837,-1469.89,0.0005863,120]
[354391478,1740468787847,-880.12,0.0005863,120]
[354391479,1740468787856,-1941.03,0.0005863,120]
[354391480,1740468787865,-998.34,0.0005863,120]
[354391481,1740468787875,-1969.46,0.0005863,120]
[354391482,1740468787884,-2020.04,0.0005863,120]
[354391483,1740468787893,-1704.77,0.0005863,120]
[354391484,1740468787903,-500.0,0.0005863,120]
[354391485,1740468787912,-3000.0,0.0005863,120]
[354391486,1740468787921,-1814.1,0.0005863,120]
[354391487,1740468787930,-3162.2,0.0005863,120]
[354391488,1740468787940,-561.29,0.0005863,120]
[354391489,1740468787948,-4214.34,0.0005863,120]
[354391490,1740468787958,-1107.87,0.0005863,120]
[354391491,1740468787967,-1793.36,0.0005863,120]
[354391492,1740468787977,-1453.67,0.0005863,30]
[354391493,1740468787986,-558.43,0.0005863,120]
[354391494,1740468787996,-1291.79,0.0005863,120]
[354391495,1740468788005,-2203.33,0.0005863,120]
[354391496,1740468788015,-2186.37,0.0005863,120]
[354391497,1740468788024,-2099.71,0.0005863,120]
[354391498,1740468788033,-1541.65,0.0005863,120]
[354391499,1740468788043,-500.0,0.0005863,2]
[354391500,1740468788052,-500.0,0.0005863,120]
[354391501,1740468788062,-2864.64,0.0005863,120]
[354391502,1740468788071,-500.0,0.0005863,120]
[354391503,1740468788080,-1803.36,0.0005863,120]
[354391504,1740468788090,-1506.59,0.0005863,120]
[354391505,1740468788099,-1568.57,0.0005863,120]
[354391506,1740468788125,-980.59,0.0005863,120]
[354391507,1740468788134,-1792.49,0.0005863,120]
[354391508,1740468788144,-500.0,0.0005863,120]
[354391509,1740468788154,-1620.72,0.0005863,120]
[354391510,1740468788165,-500.0,0.0005863,120]
[354391511,1740468788175,-659.49,0.0005863,120]
[354391512,1740468788184,-500.0,0.0005863,120]
[354391513,1740468788195,-3340.49,0.0005863,120]
[354391514,1740468788204,-150.979023,0.0005863,120]
[354391515,1740468788214,-849.91,0.0005863,120]
[354391516,1740468788224,-668.51,0.0005863,120]
[354391517,1740468788233,-680.52,0.0005863,120]
[354391518,1740468788243,-1680.11,0.0005863,120]
[354391519,1740468788253,-500.0,0.0005863,120]
[354391520,1740468788262,-2006.24,0.0005863,120]
[354391521,1740468788271,-2470.99,0.0005863,120]
[354391522,1740468788281,-155.43,0.00058674,120]
[354391523,1740468788290,-1000.0,0.000587,120]
[354391524,1740468788299,-10000.0,0.0005879,30]
[354391525,1740468788309,-150.0,0.000588,30]
[354391526,1740468788319,-563.24,0.00058904,120]
[354391527,1740468788328,-580.45,0.00058904,120]
[354391528,1740468788337,-167.182594,0.00058904,120]
[354391529,1740468788347,-406.014874,0.00058904,120]
[354391530,1740468788357,-166.734294,0.00058904,120]
[354391531,1740468788366,-554.357489,0.00058904,120]
[354391532,1740468788376,-500.0,0.00058904,120]
[354391533,1740468788385,-500.0,0.00058904,120]
[354391534,1740468788394,-521.68,0.00058904,120]
[354391535,1740468788403,-500.0,0.00058904,120]
[354391536,1740468788413,-699.56,0.00058904,120]
[354391537,1740468788422,-500.0,0.00058904,120]
[354391538,1740468788432,-500.0,0.00058904,120]
[354391539,1740468788442,-687.3,0.00058904,120]
[354391540,1740468788451,-500.0,0.00058904,120]
[354391541,1740468788461,-1291.42,0.00058904,120]
[354391542,1740468788471,-500.0,0.00058904,120]
[354391543,1740468788481,-500.0,0.00058904,120]
[354391544,1740468788491,-500.0,0.00058904,120]
[354391545,1740468788501,-850.45,0.00058904,120]
[354391546,1740468788510,-540.09406582,0.00058904,120]
[354391547,1740468788520,-836.92,0.00058904,120]
[354391548,1740468788530,-925.53,0.00058904,120]
[354391549,1740468788540,-525.48,0.00058904,120]
[354391550,1740468788550,-277.81206255,0.00058904,120]
[354391551,1740468788560,-1017.7,0.00058904,120]
[354391552,1740468788570,-620.4,0.00058904,120]
[354391553,1740468788580,-500.0,0.00058904,120]
[354391554,1740468788590,-637.38,0.00058904,120]
[354391555,1740468788600,-500.0,0.00058904,120]
[354391556,1740468788612,-822.2,0.00058904,120]
[354391557,1740468788635,-500.0,0.00058904,120]
[354391558,1740468788644,-543.16,0.00058904,120]
[354391559,1740468788655,-1571.07,0.00058904,120]
[354391560,1740468788665,-848.24,0.00058904,120]
[354391561,1740468788675,-943.15,0.00058904,120]
[354391562,1740468788684,-500.0,0.00058904,120]
[354391563,1740468788694,-1168.63,0.00058904,120]
[354391564,1740468788704,-500.0,0.00058904,120]
[354391565,1740468788715,-517.51,0.00058904,120]
[354391566,1740468788725,-951.32,0.00058904,120]
[354391567,1740468788736,-2000.0,0.00058904,30]
[354391568,1740468788747,-487.79970982,0.00058904,120]
[354391569,1740468788757,-531.23749729,0.00058904,120]
[354391570,1740468788767,-500.0,0.00058904,120]
[354391571,1740468788778,-777.26,0.00058904,120]
[354391572,1740468788788,-500.0,0.00058904,120]
[354391573,1740468788798,-560.94,0.00058904,120]
[354391574,1740468788808,-404.43,0.00058904,7]
[354391575,1740468788818,-500.0,0.00058904,120]
[354391576,1740468788828,-1128.12,0.00058904,120]
[354391577,1740468788838,-610.79,0.00058904,120]
[354391578,1740468788852,-630.83,0.00058904,120]
[354391579,1740468788863,-500.0,0.00058904,120]
[354391580,1740468788873,-500.0,0.00058904,120]
[354391581,1740468788883,-378.54255424,0.00058904,120]
[354391582,1740468788893,-446.56576466,0.00058904,120]
[354391583,1740468788902,-500.0,0.00058904,120]
[354391584,1740468788911,-641.8,0.00058904,120]
[354391585,1740468788921,-500.0,0.00058904,120]
[354391586,1740468788930,-1736.97,0.00058904,120]
[354391587,1740468788940,-500.0,0.00058904,120]
[354391588,1740468788950,-551.92,0.00058904,120]
[354391589,1740468788960,-500.0,0.00058904,120]
[354391590,1740468788970,-500.0,0.00058904,120]
[354391591,1740468788980,-829.97,0.00058904,120]
[354391592,1740468788990,-1884.67,0.00058904,120]
[354391593,1740468788999,-1959.02,0.00058904,120]
[354391594,1740468789009,-687.65,0.00058904,120]
[354391595,1740468789019,-1049.16,0.00058904,120]
[354391596,1740468789030,-615.48751414,0.00058904,120]
[354391597,1740468789041,-500.0,0.00058904,120]
[354391598,1740468789051,-500.0,0.00058904,120]
[354391599,1740468789061,-500.0,0.00058904,120]
[354391600,1740468789071,-910.65,0.00058904,120]
[354391601,1740468789081,-500.0,0.00058904,120]
[354391602,1740468789091,-500.0,0.00058904,120]
[354391603,1740468789101,-500.0,0.00058904,120]
[354391604,1740468789115,-500.0,0.00058904,120]
[354391605,1740468789130,-1220.8,0.00058904,120]
[354391606,1740468789142,-500.0,0.00058904,120]